[Event "Titled Tuesday Blitz May 31 Early 2022"]
[White "Tarigan, Gilbert Elroy"]
[Black "Martinez Alcantara, Jose Eduardo"]
[WhiteFideId "7108133"]
[BlackFideId "3805662"]
[WhiteElo "1908"]
[BlackElo "2690"]
[Result "0-1"]
[Round "02"]
[TimeControl "180+1"]
[Date "2022.05.31"]
[WhiteClock "0:00:02"]
[BlackClock "0:00:06"]

1. d4 {[%clk 0:03:00]}  Nf6 {[%clk 0:03:00]} 2. Nf3 {[%clk 0:03:00]}  e6 {[%clk 0:03:01]} 3. c4 {[%clk 0:03:00]}  Bb4+ {[%clk 0:03:01]} 4. Nc3 {[%clk 0:02:58]}  b6 {[%clk 0:03:01]} 5. g3 {[%clk 0:02:54]}  Bb7 {[%clk 0:03:01]} 6. Bg2 {[%clk 0:02:53]}  Bxc3+ {[%clk 0:03:02]} 7. bxc3 {[%clk 0:02:53]}  O-O {[%clk 0:03:03]} 8. O-O {[%clk 0:02:50]}  Be4 {[%clk 0:03:03]} 9. Bh3 {[%clk 0:02:44]}  h6 {[%clk 0:02:57]} 10. Nd2 {[%clk 0:02:42]}  Bb7 {[%clk 0:02:57]} 11. Re1 {[%clk 0:02:41]}  d6 {[%clk 0:02:57]} 12. e4 {[%clk 0:02:40]}  e5 {[%clk 0:02:57]} 13. a4 {[%clk 0:02:33]}  Nc6 {[%clk 0:02:56]} 14. Bb2 {[%clk 0:02:23]}  Re8 {[%clk 0:02:55]} 15. f4 {[%clk 0:02:18]}  Na5 {[%clk 0:02:53]} 16. Bg2 {[%clk 0:02:15]}  c5 {[%clk 0:02:48]} 17. d5 {[%clk 0:02:13]}  Ba6 {[%clk 0:02:41]} 18. Bf1 {[%clk 0:02:13]}  Rb8 {[%clk 0:02:42]} 19. Qf3 {[%clk 0:02:06]}  Rb7 {[%clk 0:02:38]} 20. f5 {[%clk 0:02:03]}  Kf8 {[%clk 0:02:30]} 21. Bd3 {[%clk 0:01:58]}  Ke7 {[%clk 0:02:30]} 22. Qe2 {[%clk 0:01:50]}  Kd7 {[%clk 0:02:30]} 23. Nb1 {[%clk 0:01:44]}  Kc8 {[%clk 0:02:28]} 24. Na3 {[%clk 0:01:44]}  Kb8 {[%clk 0:02:29]} 25. Nb5 {[%clk 0:01:43]}  Rd7 {[%clk 0:02:29]} 26. Rab1 {[%clk 0:01:35]}  Bb7 {[%clk 0:02:29]} 27. Bc1 {[%clk 0:01:32]}  Rg8 {[%clk 0:02:25]} 28. Rf1 {[%clk 0:01:31]}  Nh7 {[%clk 0:02:22]} 29. Be3 {[%clk 0:01:28]}  a6 {[%clk 0:02:19]} 30. Na3 {[%clk 0:01:26]}  Ka7 {[%clk 0:02:20]} 31. Rb2 {[%clk 0:01:22]}  Bc8 {[%clk 0:02:18]} 32. Rfb1 {[%clk 0:01:23]}  Rb7 {[%clk 0:02:19]} 33. Kg2 {[%clk 0:01:15]}  Bd7 {[%clk 0:02:19]} 34. Bc2 {[%clk 0:01:05]}  Qe8 {[%clk 0:02:05]} 35. Ra1 {[%clk 0:00:57]}  Nf6 {[%clk 0:02:04]} 36. Rbb1 {[%clk 0:00:52]}  Kb8 {[%clk 0:01:53]} 37. Rf1 {[%clk 0:00:31]}  Rh8 {[%clk 0:01:44]} 38. Kg1 {[%clk 0:00:29]}  Qd8 {[%clk 0:01:31]} 39. Kg2 {[%clk 0:00:28]}  Be8 {[%clk 0:01:30]} 40. Kg1 {[%clk 0:00:29]}  g5 {[%clk 0:01:28]} 41. h3 {[%clk 0:00:24]}  Rg8 {[%clk 0:01:26]} 42. Kg2 {[%clk 0:00:24]}  Bd7 {[%clk 0:01:25]} 43. Rfb1 {[%clk 0:00:24]}  Qe8 {[%clk 0:01:22]} 44. Rf1 {[%clk 0:00:22]}  Qe7 {[%clk 0:01:12]} 45. Rfb1 {[%clk 0:00:22]}  Ka7 {[%clk 0:01:13]} 46. Rc1 {[%clk 0:00:22]}  Ra8 {[%clk 0:01:14]} 47. Rcb1 {[%clk 0:00:22]}  Kb8 {[%clk 0:01:15]} 48. Rb2 {[%clk 0:00:22]}  Qe8 {[%clk 0:01:15]} 49. Rab1 {[%clk 0:00:22]}  Kc7 {[%clk 0:01:12]} 50. Ra2 {[%clk 0:00:18]}  Kd8 {[%clk 0:01:12]} 51. Qd1 {[%clk 0:00:17]}  Ke7 {[%clk 0:01:11]} 52. Qe2 {[%clk 0:00:16]}  Bxa4 {[%clk 0:00:56]} 53. Bd3 {[%clk 0:00:16]}  Rab8 {[%clk 0:00:51]} 54. Rh1 {[%clk 0:00:15]}  Qg8 {[%clk 0:00:43]} 55. h4 {[%clk 0:00:14]}  Qg7 {[%clk 0:00:41]} 56. hxg5 {[%clk 0:00:14]}  hxg5 {[%clk 0:00:42]} 57. Kg1 {[%clk 0:00:12]}  Rg8 {[%clk 0:00:40]} 58. Rh3 {[%clk 0:00:09]}  Rbb8 {[%clk 0:00:40]} 59. Qh2 {[%clk 0:00:09]}  Rh8 {[%clk 0:00:36]} 60. Rb2 {[%clk 0:00:08]}  Rxh3 {[%clk 0:00:34]} 61. Qxh3 {[%clk 0:00:09]}  Kd7 {[%clk 0:00:27]} 62. Qg2 {[%clk 0:00:08]}  Kc7 {[%clk 0:00:28]} 63. Nb1 {[%clk 0:00:07]}  Bd7 {[%clk 0:00:26]} 64. Nd2 {[%clk 0:00:07]}  Ng4 {[%clk 0:00:24]} 65. Qe2 {[%clk 0:00:03]}  Nxe3 {[%clk 0:00:24]} 66. Qxe3 {[%clk 0:00:03]}  f6 {[%clk 0:00:24]} 67. Be2 {[%clk 0:00:03]}  Qh7 {[%clk 0:00:24]} 68. Bf3 {[%clk 0:00:02]}  Be8 {[%clk 0:00:22]} 69. Bg2 {[%clk 0:00:03]}  Rb7 {[%clk 0:00:22]} 70. Ra2 {[%clk 0:00:03]}  Kb8 {[%clk 0:00:22]} 71. Kf2 {[%clk 0:00:04]}  Ka7 {[%clk 0:00:22]} 72. Nf1 {[%clk 0:00:04]}  Nxc4 {[%clk 0:00:20]} 73. Qe2 {[%clk 0:00:05]}  Na5 {[%clk 0:00:20]} 74. Nd2 {[%clk 0:00:04]}  Bb5 {[%clk 0:00:17]} 75. c4 {[%clk 0:00:04]}  Be8 {[%clk 0:00:16]} 76. Ra1 {[%clk 0:00:05]}  Qh5 {[%clk 0:00:14]} 77. Bf3 {[%clk 0:00:04]}  Qf7 {[%clk 0:00:15]} 78. Rh1 {[%clk 0:00:04]}  Qe7 {[%clk 0:00:16]} 79. Ra1 {[%clk 0:00:03]}  Kb8 {[%clk 0:00:13]} 80. Qd3 {[%clk 0:00:03]}  Qc7 {[%clk 0:00:13]} 81. Rh1 {[%clk 0:00:03]}  Ka7 {[%clk 0:00:11]} 82. Rh8 {[%clk 0:00:04]}  Rb8 {[%clk 0:00:11]} 83. Qf1 {[%clk 0:00:03]}  Ba4 {[%clk 0:00:11]} 84. Rh6 {[%clk 0:00:02]}  Rf8 {[%clk 0:00:10]} 85. Qh1 {[%clk 0:00:03]}  b5 {[%clk 0:00:10]} 86. Bh5 {[%clk 0:00:03]}  Kb6 {[%clk 0:00:09]} 87. Bg6 {[%clk 0:00:03]}  Rd8 {[%clk 0:00:09]} 88. Rh7 {[%clk 0:00:04]}  Rd7 {[%clk 0:00:10]} 89. Rh8 {[%clk 0:00:04]}  Nxc4 {[%clk 0:00:09]} 90. Nxc4+ {[%clk 0:00:04]}  bxc4 {[%clk 0:00:10]} 91. Qa1 {[%clk 0:00:04]}  Bb5 {[%clk 0:00:10]} 92. Be8 {[%clk 0:00:04]}  Rd8 {[%clk 0:00:10]} 93. Bxb5 {[%clk 0:00:04]}  axb5 {[%clk 0:00:11]} 94. Rh6 {[%clk 0:00:04]}  Qe7 {[%clk 0:00:10]} 95. Qh1 {[%clk 0:00:04]}  c3 {[%clk 0:00:10]} 96. Rh7 {[%clk 0:00:04]}  Qf8 {[%clk 0:00:06]} 97. Qa1 {[%clk 0:00:04]}  Ra8 {[%clk 0:00:06]} 98. Qxc3 {[%clk 0:00:04]}  Ra2+ {[%clk 0:00:06]} 99. Kg1 {[%clk 0:00:04]}  Qa8 {[%clk 0:00:07]} 100. Rd7 {[%clk 0:00:03]}  Ra1+ {[%clk 0:00:07]} 101. Kg2 {[%clk 0:00:03]}  Qa2+ {[%clk 0:00:08]} 102. Kh3 {[%clk 0:00:03]}  Rh1+ {[%clk 0:00:08]} 103. Kg4 {[%clk 0:00:03]}  Qe2+ {[%clk 0:00:09]} 104. Qf3 {[%clk 0:00:04]}  Qxf3+ {[%clk 0:00:09]} 105. Kxf3 {[%clk 0:00:05]}  c4 {[%clk 0:00:09]} 106. Rxd6+ {[%clk 0:00:05]}  Kb7 {[%clk 0:00:08]} 107. Rxf6 {[%clk 0:00:05]}  Rc1 {[%clk 0:00:06]} 108. Rc6 {[%clk 0:00:04]}  b4 {[%clk 0:00:07]} 109. f6 {[%clk 0:00:04]}  b3 {[%clk 0:00:08]} 110. Rc5 {[%clk 0:00:04]}  Kb6 {[%clk 0:00:06]} 111. Rc8 {[%clk 0:00:04]}  Ka7 {[%clk 0:00:06]} 112. f7 {[%clk 0:00:02]}  b2 {[%clk 0:00:05]} 113. Kg4 {[%clk 0:00:01]}  Rf1 {[%clk 0:00:05]} 114. f8=Q {[%clk 0:00:01]}  Rxf8 {[%clk 0:00:05]} 115. Rxf8 {[%clk 0:00:02]}  b1=Q {[%clk 0:00:06]} 116. Rc8 {[%clk 0:00:02]}  Qxe4+ {[%clk 0:00:06]} 0-1


[Site "https://www.chess.com"]

[Event "Titled Tuesday Blitz May 31 Early 2022"]
[White "Tasev, Dejan"]
[Black "Xu, Yi"]
[WhiteFideId "936618"]
[BlackFideId "8605564"]
[WhiteElo "2253"]
[BlackElo "2471"]
[Result "0-1"]
[Round "02"]
[TimeControl "180+1"]
[Date "2022.06.01"]
[WhiteClock "0:00:09"]
[BlackClock "0:00:48"]

1. e4 {[%clk 0:03:00]}  c5 {[%clk 0:02:59]} 2. Nf3 {[%clk 0:02:59]}  d6 {[%clk 0:02:59]} 3. Nc3 {[%clk 0:02:58]}  Nf6 {[%clk 0:02:58]} 4. d4 {[%clk 0:02:59]}  cxd4 {[%clk 0:02:58]} 5. Nxd4 {[%clk 0:02:59]}  a6 {[%clk 0:02:58]} 6. Bc4 {[%clk 0:02:59]}  e6 {[%clk 0:02:58]} 7. Bb3 {[%clk 0:02:59]}  b5 {[%clk 0:02:56]} 8. a3 {[%clk 0:02:58]}  Nbd7 {[%clk 0:02:53]} 9. f3 {[%clk 0:02:57]}  Qc7 {[%clk 0:02:48]} 10. Be3 {[%clk 0:02:49]}  h5 {[%clk 0:02:43]} 11. Qd2 {[%clk 0:02:48]}  Ne5 {[%clk 0:02:41]} 12. O-O-O {[%clk 0:02:44]}  Be7 {[%clk 0:02:39]} 13. h4 {[%clk 0:02:37]}  Rb8 {[%clk 0:02:38]} 14. f4 {[%clk 0:02:27]}  Nc4 {[%clk 0:02:28]} 15. Qe1 {[%clk 0:02:13]}  Bd7 {[%clk 0:02:09]} 16. f5 {[%clk 0:01:52]}  e5 {[%clk 0:01:52]} 17. Nf3 {[%clk 0:01:51]}  a5 {[%clk 0:01:48]} 18. Nd5 {[%clk 0:01:35]}  Nxd5 {[%clk 0:01:43]} 19. Rxd5 {[%clk 0:01:34]}  Bc6 {[%clk 0:01:33]} 20. Bxc4 {[%clk 0:01:32]}  bxc4 {[%clk 0:01:33]} 21. Rxa5 {[%clk 0:01:23]}  Bxe4 {[%clk 0:01:32]} 22. Ng5 {[%clk 0:01:16]}  Bxf5 {[%clk 0:01:25]} 23. Rf1 {[%clk 0:01:15]}  Bg6 {[%clk 0:01:25]} 24. Ra7 {[%clk 0:01:11]}  Qd8 {[%clk 0:01:18]} 25. Qg3 {[%clk 0:01:05]}  Bxg5 {[%clk 0:01:15]} 26. hxg5 {[%clk 0:00:57]}  O-O {[%clk 0:01:12]} 27. Qf3 {[%clk 0:00:53]}  c3 {[%clk 0:01:11]} 28. b3 {[%clk 0:00:47]}  Qc8 {[%clk 0:00:58]} 29. Qd5 {[%clk 0:00:34]}  Qg4 {[%clk 0:00:58]} 30. Qf3 {[%clk 0:00:27]}  Qe6 {[%clk 0:00:54]} 31. Qc6 {[%clk 0:00:18]}  Rxb3 {[%clk 0:00:50]} 32. cxb3 {[%clk 0:00:18]}  Qxb3 {[%clk 0:00:49]} 33. Rf2 {[%clk 0:00:09]}  Qb1# {[%clk 0:00:48]} 0-1


[Site "https://www.chess.com"]

[Event "Titled Tuesday Blitz May 31 Early 2022"]
[White "Toncheva, Nadya"]
[Black "Darini, Pouria"]
[WhiteFideId "2924056"]
[BlackFideId "12502200"]
[WhiteElo "1888"]
[BlackElo "2483"]
[Result "0-1"]
[Round "02"]
[TimeControl "180+1"]
[Date "2022.06.01"]
[WhiteClock "0:00:04"]
[BlackClock "0:00:10"]

1. e4 {[%clk 0:03:00]}  c5 {[%clk 0:02:58]} 2. Nf3 {[%clk 0:03:00]}  Nc6 {[%clk 0:02:57]} 3. d4 {[%clk 0:03:01]}  cxd4 {[%clk 0:02:57]} 4. Nxd4 {[%clk 0:03:01]}  Nf6 {[%clk 0:02:52]} 5. Nc3 {[%clk 0:02:59]}  d6 {[%clk 0:02:49]} 6. Bg5 {[%clk 0:02:56]}  e6 {[%clk 0:02:48]} 7. Qd2 {[%clk 0:02:56]}  a6 {[%clk 0:02:42]} 8. O-O-O {[%clk 0:02:56]}  Bd7 {[%clk 0:02:42]} 9. f4 {[%clk 0:02:53]}  Be7 {[%clk 0:02:42]} 10. Nf3 {[%clk 0:02:23]}  b5 {[%clk 0:02:42]} 11. Bxf6 {[%clk 0:02:20]}  gxf6 {[%clk 0:02:41]} 12. f5 {[%clk 0:02:16]}  Qa5 {[%clk 0:02:27]} 13. Kb1 {[%clk 0:02:11]}  O-O-O {[%clk 0:02:08]} 14. Nd4 {[%clk 0:01:51]}  Qb6 {[%clk 0:01:44]} 15. Nb3 {[%clk 0:01:16]}  h5 {[%clk 0:01:36]} 16. Be2 {[%clk 0:01:07]}  Kb8 {[%clk 0:01:35]} 17. Rhe1 {[%clk 0:01:05]}  Rc8 {[%clk 0:01:30]} 18. Bf3 {[%clk 0:00:50]}  Ne5 {[%clk 0:01:22]} 19. Qd4 {[%clk 0:00:34]}  Ka7 {[%clk 0:01:10]} 20. Ne2 {[%clk 0:00:18]}  h4 {[%clk 0:00:56]} 21. Nf4 {[%clk 0:00:17]}  Rhg8 {[%clk 0:00:52]} 22. Nd3 {[%clk 0:00:08]}  Nc6 {[%clk 0:00:24]} 23. Qxb6+ {[%clk 0:00:05]}  Kxb6 {[%clk 0:00:24]} 24. Nf4 {[%clk 0:00:04]}  Rc7 {[%clk 0:00:18]} 25. c3 {[%clk 0:00:03]}  Ka7 {[%clk 0:00:17]} 26. Nd4 {[%clk 0:00:02]}  Nd8 {[%clk 0:00:13]} 27. fxe6 {[%clk 0:00:02]}  fxe6 {[%clk 0:00:13]} 28. Nc2 {[%clk 0:00:03]}  Kb6 {[%clk 0:00:13]} 29. Ne2 {[%clk 0:00:03]}  Nf7 {[%clk 0:00:13]} 30. Rd2 {[%clk 0:00:04]}  Ne5 {[%clk 0:00:14]} 31. Red1 {[%clk 0:00:05]}  Bc6 {[%clk 0:00:14]} 32. Ned4 {[%clk 0:00:05]}  Bd7 {[%clk 0:00:14]} 33. h3 {[%clk 0:00:05]}  Rg3 {[%clk 0:00:14]} 34. Rf2 {[%clk 0:00:05]}  a5 {[%clk 0:00:14]} 35. Be2 {[%clk 0:00:06]}  Rg6 {[%clk 0:00:09]} 36. Nf3 {[%clk 0:00:05]}  Nxf3 {[%clk 0:00:09]} 37. Bxf3 {[%clk 0:00:05]}  Rc5 {[%clk 0:00:09]} 38. Nd4 {[%clk 0:00:06]}  Re5 {[%clk 0:00:08]} 39. Re1 {[%clk 0:00:05]}  Bc8 {[%clk 0:00:08]} 40. Bd1 {[%clk 0:00:05]}  Bb7 {[%clk 0:00:08]} 41. Bc2 {[%clk 0:00:05]}  b4 {[%clk 0:00:08]} 42. Nf3 {[%clk 0:00:05]}  Rh5 {[%clk 0:00:08]} 43. e5 {[%clk 0:00:05]}  f5 {[%clk 0:00:08]} 44. exd6 {[%clk 0:00:05]}  Bxd6 {[%clk 0:00:09]} 45. Nd4 {[%clk 0:00:06]}  Bd5 {[%clk 0:00:07]} 46. cxb4 {[%clk 0:00:05]}  Bxb4 {[%clk 0:00:08]} 47. Rd1 {[%clk 0:00:03]}  Bc5 {[%clk 0:00:08]} 48. a3 {[%clk 0:00:03]}  Rhh6 {[%clk 0:00:07]} 49. Re2 {[%clk 0:00:02]}  Rxg2 {[%clk 0:00:07]} 50. Rxg2 {[%clk 0:00:02]}  Bxg2 {[%clk 0:00:08]} 51. Nb3 {[%clk 0:00:01]}  Bf2 {[%clk 0:00:07]} 52. Rd2 {[%clk 0:00:01]}  Bxh3 {[%clk 0:00:05]} 53. Bd3 {[%clk 0:00:02]}  Be3 {[%clk 0:00:05]} 54. Re2 {[%clk 0:00:02]}  Bf4 {[%clk 0:00:05]} 55. Bc4 {[%clk 0:00:02]}  e5 {[%clk 0:00:05]} 56. Bd5 {[%clk 0:00:02]}  e4 {[%clk 0:00:05]} 57. Bc4 {[%clk 0:00:03]}  Be5 {[%clk 0:00:05]} 58. Kc2 {[%clk 0:00:02]}  Bg4 {[%clk 0:00:06]} 59. Re1 {[%clk 0:00:02]}  h3 {[%clk 0:00:06]} 60. Nd2 {[%clk 0:00:02]}  h2 {[%clk 0:00:06]} 61. Rh1 {[%clk 0:00:03]}  Bf3 {[%clk 0:00:06]} 62. Nxf3 {[%clk 0:00:03]}  exf3 {[%clk 0:00:07]} 63. Bf1 {[%clk 0:00:03]}  Bd4 {[%clk 0:00:07]} 64. b4 {[%clk 0:00:03]}  Bg1 {[%clk 0:00:07]} 65. Kd3 {[%clk 0:00:04]}  axb4 {[%clk 0:00:07]} 66. axb4 {[%clk 0:00:04]}  Rd6+ {[%clk 0:00:07]} 67. Kc2 {[%clk 0:00:04]}  Rd4 {[%clk 0:00:08]} 68. Kc3 {[%clk 0:00:04]}  Re4 {[%clk 0:00:08]} 69. Kc2 {[%clk 0:00:04]}  Re1 {[%clk 0:00:08]} 70. Bd3 {[%clk 0:00:04]}  f4 {[%clk 0:00:08]} 71. Kd2 {[%clk 0:00:04]}  f2 {[%clk 0:00:09]} 72. Bc4 {[%clk 0:00:04]}  f1=Q {[%clk 0:00:09]} 73. Bxf1 {[%clk 0:00:04]}  Rxf1 {[%clk 0:00:10]} 74. Ke2 {[%clk 0:00:05]}  Rb1 {[%clk 0:00:10]} 75. Rxg1 {[%clk 0:00:04]}  hxg1=Q {[%clk 0:00:10]} 0-1


[Site "https://www.chess.com"]

[Event "Titled Tuesday Blitz May 31 Early 2022"]
[White "Yilmaz, Mustafa"]
[Black "Suder, Jakub"]
[WhiteFideId "6302718"]
[BlackFideId "1195310"]
[WhiteElo "2568"]
[BlackElo "2058"]
[Result "1-0"]
[Round "02"]
[TimeControl "180+1"]
[Date "2022.05.31"]
[WhiteClock "0:02:04"]
[BlackClock "0:02:11"]

1. c4 {[%clk 0:03:00]}  e6 {[%clk 0:02:56]} 2. Nc3 {[%clk 0:02:59]}  d5 {[%clk 0:02:54]} 3. d4 {[%clk 0:02:59]}  a6 {[%clk 0:02:51]} 4. cxd5 {[%clk 0:02:59]}  exd5 {[%clk 0:02:50]} 5. Qb3 {[%clk 0:02:59]}  c5 {[%clk 0:02:42]} 6. Nf3 {[%clk 0:02:27]}  Nc6 {[%clk 0:02:36]} 7. Nxd5 {[%clk 0:02:22]}  Be6 {[%clk 0:02:32]} 8. e4 {[%clk 0:02:20]}  Nxd4 {[%clk 0:02:26]} 9. Nxd4 {[%clk 0:02:18]}  cxd4 {[%clk 0:02:27]} 10. Qxb7 {[%clk 0:02:09]}  Ne7 {[%clk 0:02:11]} 11. Nc7+ {[%clk 0:02:04]} 1-0


[Site "https://www.chess.com"]

[Event "Titled Tuesday Blitz May 31 Early 2022"]
[White "Barp, Alberto"]
[Black "Baches Garcia, Guillermo"]
[WhiteFideId "872555"]
[BlackFideId "2209764"]
[WhiteElo "2229"]
[BlackElo "2490"]
[Result "1-0"]
[Round "03"]
[TimeControl "180+1"]
[Date "2022.06.01"]
[WhiteClock "0:00:06"]
[BlackClock "0:00:05"]

1. d4 {[%clk 0:02:58]}  Nf6 {[%clk 0:03:00]} 2. Bf4 {[%clk 0:02:55]}  e6 {[%clk 0:03:00]} 3. e3 {[%clk 0:02:55]}  d5 {[%clk 0:03:00]} 4. Bd3 {[%clk 0:02:54]}  c5 {[%clk 0:03:00]} 5. c3 {[%clk 0:02:51]}  Nc6 {[%clk 0:03:00]} 6. Nf3 {[%clk 0:02:47]}  Nh5 {[%clk 0:02:58]} 7. Bg5 {[%clk 0:02:44]}  Qb6 {[%clk 0:02:58]} 8. Qc1 {[%clk 0:02:40]}  c4 {[%clk 0:02:52]} 9. Bc2 {[%clk 0:02:38]}  h6 {[%clk 0:02:52]} 10. Bh4 {[%clk 0:02:38]}  g5 {[%clk 0:02:52]} 11. Bg3 {[%clk 0:02:39]}  Nxg3 {[%clk 0:02:50]} 12. hxg3 {[%clk 0:02:39]}  Bg7 {[%clk 0:02:50]} 13. Nbd2 {[%clk 0:02:38]}  g4 {[%clk 0:02:47]} 14. Ng1 {[%clk 0:02:32]}  e5 {[%clk 0:02:32]} 15. Ne2 {[%clk 0:02:28]}  f6 {[%clk 0:02:08]} 16. Bg6+ {[%clk 0:02:24]}  Ke7 {[%clk 0:02:08]} 17. Rh5 {[%clk 0:02:17]}  Be6 {[%clk 0:02:05]} 18. Qc2 {[%clk 0:02:15]}  Qa5 {[%clk 0:01:54]} 19. Bf5 {[%clk 0:02:12]}  Bf7 {[%clk 0:01:51]} 20. Bg6 {[%clk 0:02:12]}  Be6 {[%clk 0:01:50]} 21. Bf5 {[%clk 0:02:10]}  Bf7 {[%clk 0:01:50]} 22. Bxg4 {[%clk 0:02:10]}  Bxh5 {[%clk 0:01:48]} 23. Bxh5 {[%clk 0:02:11]}  e4 {[%clk 0:01:39]} 24. Nf4 {[%clk 0:02:09]}  Kd7 {[%clk 0:01:34]} 25. Bg4+ {[%clk 0:01:49]}  Kd6 {[%clk 0:01:28]} 26. b4 {[%clk 0:01:39]}  Qd8 {[%clk 0:01:20]} 27. b5 {[%clk 0:01:33]}  Ne7 {[%clk 0:01:12]} 28. Qa4 {[%clk 0:01:25]}  f5 {[%clk 0:01:01]} 29. Bh5 {[%clk 0:01:12]}  Qd7 {[%clk 0:00:49]} 30. Bf7 {[%clk 0:01:06]}  Kc7 {[%clk 0:00:31]} 31. Rb1 {[%clk 0:00:53]}  Kb8 {[%clk 0:00:29]} 32. Qb4 {[%clk 0:00:49]}  Rd8 {[%clk 0:00:23]} 33. Ne6 {[%clk 0:00:36]}  Rf8 {[%clk 0:00:14]} 34. Nxf8 {[%clk 0:00:33]}  Bxf8 {[%clk 0:00:14]} 35. Qb2 {[%clk 0:00:29]}  b6 {[%clk 0:00:13]} 36. a4 {[%clk 0:00:29]}  a5 {[%clk 0:00:10]} 37. bxa6 {[%clk 0:00:27]}  Rxa6 {[%clk 0:00:11]} 38. a5 {[%clk 0:00:28]}  Kb7 {[%clk 0:00:07]} 39. axb6 {[%clk 0:00:27]}  Nc6 {[%clk 0:00:07]} 40. Bg8 {[%clk 0:00:19]}  Be7 {[%clk 0:00:07]} 41. Qb5 {[%clk 0:00:18]}  Ra5 {[%clk 0:00:07]} 42. Qb2 {[%clk 0:00:15]}  Bd8 {[%clk 0:00:08]} 43. Ra1 {[%clk 0:00:12]}  Bxb6 {[%clk 0:00:06]} 44. Rxa5 {[%clk 0:00:12]}  Nxa5 {[%clk 0:00:07]} 45. Kf1 {[%clk 0:00:07]}  Kc7 {[%clk 0:00:07]} 46. Kg1 {[%clk 0:00:04]}  Nb3 {[%clk 0:00:07]} 47. Nxb3 {[%clk 0:00:04]}  Qb5 {[%clk 0:00:07]} 48. Qa3 {[%clk 0:00:03]}  Qxb3 {[%clk 0:00:07]} 49. Qe7+ {[%clk 0:00:03]}  Kb8 {[%clk 0:00:07]} 50. Bxd5 {[%clk 0:00:03]}  Ba5 {[%clk 0:00:07]} 51. Qe8+ {[%clk 0:00:02]}  Kc7 {[%clk 0:00:06]} 52. Qc6+ {[%clk 0:00:03]}  Kd8 {[%clk 0:00:06]} 53. Qd6+ {[%clk 0:00:03]}  Kc8 {[%clk 0:00:05]} 54. Qc6+ {[%clk 0:00:04]}  Kd8 {[%clk 0:00:05]} 55. Be6 {[%clk 0:00:04]}  Ke7 {[%clk 0:00:05]} 56. Qd7+ {[%clk 0:00:05]}  Kf6 {[%clk 0:00:05]} 57. Qf7+ {[%clk 0:00:06]}  Kg5 {[%clk 0:00:05]} 58. Qg7+ {[%clk 0:00:06]} 1-0


[Site "https://www.chess.com"]

[Event "Titled Tuesday Blitz May 31 Early 2022"]
[White "Bluebaum, Matthias"]
[Black "Skliarov, Viktor"]
[WhiteFideId "24651516"]
[BlackFideId "14106736"]
[WhiteElo "2556"]
[BlackElo "2229"]
[Result "1/2-1/2"]
[Round "03"]
[TimeControl "180+1"]
[Date "2022.05.31"]
[WhiteClock "0:00:09"]
[BlackClock "0:00:08"]

1. d4 {[%clk 0:03:00]}  Nf6 {[%clk 0:02:59]} 2. c4 {[%clk 0:02:59]}  e6 {[%clk 0:02:59]} 3. Nc3 {[%clk 0:02:59]}  Bb4 {[%clk 0:02:58]} 4. e3 {[%clk 0:03:00]}  b6 {[%clk 0:02:58]} 5. Bd3 {[%clk 0:02:59]}  Bb7 {[%clk 0:02:56]} 6. Nf3 {[%clk 0:02:59]}  Ne4 {[%clk 0:02:56]} 7. O-O {[%clk 0:02:58]}  Bxc3 {[%clk 0:02:56]} 8. bxc3 {[%clk 0:02:57]}  O-O {[%clk 0:02:57]} 9. Qc2 {[%clk 0:02:54]}  f5 {[%clk 0:02:57]} 10. Nd2 {[%clk 0:02:53]}  Qh4 {[%clk 0:02:55]} 11. f3 {[%clk 0:02:53]}  Nxd2 {[%clk 0:02:52]} 12. Bxd2 {[%clk 0:02:54]}  d6 {[%clk 0:02:52]} 13. e4 {[%clk 0:02:51]}  fxe4 {[%clk 0:02:45]} 14. Bxe4 {[%clk 0:02:48]}  Bxe4 {[%clk 0:02:42]} 15. Qxe4 {[%clk 0:02:48]}  Qxe4 {[%clk 0:02:41]} 16. fxe4 {[%clk 0:02:49]}  Nc6 {[%clk 0:02:24]} 17. c5 {[%clk 0:02:34]}  bxc5 {[%clk 0:01:45]} 18. dxc5 {[%clk 0:02:35]}  dxc5 {[%clk 0:01:45]} 19. Be3 {[%clk 0:02:30]}  c4 {[%clk 0:01:43]} 20. Rab1 {[%clk 0:02:31]}  a6 {[%clk 0:01:30]} 21. Rb7 {[%clk 0:02:29]}  Rxf1+ {[%clk 0:01:21]} 22. Kxf1 {[%clk 0:02:30]}  Rc8 {[%clk 0:01:22]} 23. Ke2 {[%clk 0:02:26]}  e5 {[%clk 0:01:17]} 24. Bc5 {[%clk 0:02:17]}  Kf7 {[%clk 0:00:41]} 25. Bd6 {[%clk 0:02:18]}  Na5 {[%clk 0:00:40]} 26. Ra7 {[%clk 0:02:14]}  Nc6 {[%clk 0:00:40]} 27. Rb7 {[%clk 0:02:14]}  Na5 {[%clk 0:00:39]} 28. Rxc7+ {[%clk 0:02:09]}  Rxc7 {[%clk 0:00:39]} 29. Bxc7 {[%clk 0:02:10]}  Nc6 {[%clk 0:00:40]} 30. Ke3 {[%clk 0:02:07]}  Kf6 {[%clk 0:00:38]} 31. Bd6 {[%clk 0:02:07]}  Ke6 {[%clk 0:00:38]} 32. Bc5 {[%clk 0:02:06]}  Kf6 {[%clk 0:00:38]} 33. Kf3 {[%clk 0:02:06]}  Kg5 {[%clk 0:00:34]} 34. Kg3 {[%clk 0:01:53]}  Kh5 {[%clk 0:00:33]} 35. Kh3 {[%clk 0:01:51]}  Kg5 {[%clk 0:00:33]} 36. Be3+ {[%clk 0:01:50]}  Kh5 {[%clk 0:00:32]} 37. g4+ {[%clk 0:01:50]}  Kg6 {[%clk 0:00:32]} 38. Bc5 {[%clk 0:01:50]}  Kg5 {[%clk 0:00:31]} 39. Kg3 {[%clk 0:01:51]}  Kg6 {[%clk 0:00:30]} 40. Kh4 {[%clk 0:01:48]}  Kh6 {[%clk 0:00:27]} 41. Be3+ {[%clk 0:01:42]}  Kg6 {[%clk 0:00:27]} 42. h3 {[%clk 0:01:42]}  Kf6 {[%clk 0:00:23]} 43. Kh5 {[%clk 0:01:40]}  Ke6 {[%clk 0:00:22]} 44. g5 {[%clk 0:01:30]}  Kf7 {[%clk 0:00:22]} 45. Bc5 {[%clk 0:01:26]}  Ke6 {[%clk 0:00:22]} 46. g6 {[%clk 0:01:19]}  h6 {[%clk 0:00:20]} 47. Be3 {[%clk 0:00:45]}  Kf6 {[%clk 0:00:19]} 48. Bxh6 {[%clk 0:00:46]}  gxh6 {[%clk 0:00:18]} 49. Kxh6 {[%clk 0:00:47]}  Ne7 {[%clk 0:00:19]} 50. g7 {[%clk 0:00:48]}  Kf7 {[%clk 0:00:11]} 51. Kh7 {[%clk 0:00:48]}  a5 {[%clk 0:00:08]} 52. h4 {[%clk 0:00:48]}  a4 {[%clk 0:00:08]} 53. h5 {[%clk 0:00:45]}  Ng8 {[%clk 0:00:07]} 54. a3 {[%clk 0:00:20]}  Ne7 {[%clk 0:00:07]} 55. Kh8 {[%clk 0:00:15]}  Ng8 {[%clk 0:00:07]} 56. Kh7 {[%clk 0:00:15]}  Ne7 {[%clk 0:00:07]} 57. Kh6 {[%clk 0:00:10]}  Kf6 {[%clk 0:00:07]} 58. Kh7 {[%clk 0:00:09]}  Kf7 {[%clk 0:00:08]} 1/2-1/2


[Site "https://www.chess.com"]